bitfinex/quotes_ETHUSD_20240602
["timestamp","ask_amount","ask_price","bid_price","bid_amount"]
[1717364995891,3.132301,3786.3,3785.7,0.55]
[1717364996335,3.132301,3786.3,3785.8,0.476]
[1717364997246,3.132301,3786.3,3785.7,0.55]
[1717364997779,3.132301,3786.3,3785.9,0.476]
[1717364999527,3.132301,3786.3,3785.6,2.64158]
[1717364999528,3.132301,3786.3,3785.2,4.89414]
[1717364999731,3.132301,3786.3,3785.2,5.383554]
[1717364999732,2.3556,3786.2,3785.2,5.383554]
[1717365000057,2.3556,3786.2,3785.3,0.55]
[1717365000263,2.3556,3786.2,3785.8,0.476]
[1717365002156,2.64111,3786.3,3786.1,0.476]
[1717365008914,3.151991,3786.3,3785.9,0.476]
[1717365009117,2.64111,3786.3,3785.9,0.476]
[1717365018865,2.64111,3786.3,3785.6,2.4783]
[1717365019174,2.64111,3786.3,3785.8,0.476]
[1717365029881,2.64111,3786.3,3785.5,2.64164]
[1717365030088,2.64111,3786.3,3785.8,0.476]
[1717365032315,2.4677,3786.5,3785.3,0.27576198]
[1717365032479,2.4677,3786.5,3784.9,2.64205]
[1717365032480,3.02562903,3786.4,3785.4,0.476]
[1717365032796,2.4546,3786.2,3785.6,0.476]
[1717365033363,2.64144,3785.9,3785.6,0.476]
[1717365033562,4.92384,3785.9,3785.6,0.476]
[1717365036708,4.92384,3785.9,3785.4,0.476]
[1717365043009,2.64159,3785.6,3784.9,2.64205]
[1717365043313,5.13899,3785.6,3785.3,0.476]
[1717365045895,5.13899,3785.6,3784.9,2.64205]
[1717365046109,5.13899,3785.6,3785.2,0.476]
[1717365048835,5.13899,3785.6,3784.9,2.64205]
[1717365049163,5.13899,3785.6,3785.2,0.476]
[1717365049503,5.13899,3785.6,3785.0,0.476]
[1717365051740,5.13899,3785.6,3784.9,5.12705]
[1717365051942,5.13899,3785.6,3785.1,0.476]
[1717365053673,5.13899,3785.6,3784.9,2.64205]
[1717365053854,5.13899,3785.6,3785.0,0.476]
[1717365055426,5.13899,3785.6,3784.9,2.64205]
[1717365055427,2.64226,3784.7,3784.3,0.89663081]
[1717365055630,2.64235,3784.5,3784.3,0.89663081]
[1717365055826,0.476,3784.4,3784.3,0.89663081]
[1717365057192,2.7768,3784.4,3784.3,0.89663081]
[1717365057480,4.94329,3784.3,3784.2,1.0452809]
[1717365057703,8.485205,3784.3,3784.2,1.0452809]
[1717365057895,2.64305,3783.6,3782.9,0.476]
[1717365058350,2.64305,3783.6,3782.7,0.476]
[1717365059067,2.64305,3783.6,3782.6,2.64366]
[1717365059264,2.64305,3783.6,3782.6,2.908026]
[1717365059574,2.64305,3783.6,3782.9,0.476]
[1717365063108,2.64305,3783.6,3782.6,2.908026]
[1717365063319,2.64305,3783.6,3782.9,0.476]
[1717365064821,2.64305,3783.6,3782.7,0.476]
[1717365066120,2.467,3783.5,3782.7,0.476]
[1717365067720,2.467,3783.5,3782.8,0.023083]
[1717365068098,2.467,3783.5,3782.7,0.476]
[1717365072735,2.467,3783.5,3782.6,2.64366]
[1717365072904,2.467,3783.5,3782.8,0.476]
[1717365074309,3.13590994,3783.5,3782.8,0.476]
[1717365078454,2.467,3783.5,3782.8,0.476]
[1717365080846,2.467,3783.5,3782.6,2.64366]
[1717365088968,2.467,3783.5,3782.8,0.476]
[1717365089364,2.467,3783.5,3782.8,3.11948]
[1717365099802,2.467,3783.5,3783.0,0.476]
[1717365102201,2.467,3783.5,3782.8,3.11948]
[1717365104329,2.467,3783.5,3782.8,2.64348]
[1717365104517,2.467,3783.5,3782.8,3.11948]
[1717365106747,2.64305,3783.6,3782.8,3.11948]
[1717365106952,2.4173,3783.4,3782.8,3.11948]
[1717365113467,2.64305,3783.6,3782.8,3.11948]
[1717365113468,2.64305,3783.6,3782.8,5.894128]
[1717365113636,2.64305,3783.6,3783.1,0.476]
[1717365116899,7.27,3783.8,3783.1,0.476]
[1717365119699,2.64278,3783.9,3783.1,0.476]
[1717365119907,4.429088,3783.9,3783.1,0.476]
[1717365120106,4.429088,3783.9,3783.2,2.4627]
[1717365121618,4.429088,3783.9,3783.2,2.9387]
[1717365122703,2.343,3783.8,3783.2,0.476]
[1717365125009,4.429088,3783.9,3783.2,0.476]
[1717365127230,2.64278,3783.9,3783.2,0.476]
[1717365127559,2.64278,3783.9,3783.2,3.11921]
[1717365128869,2.64278,3783.9,3783.2,0.476]
[1717365129016,9.7441,3784.2,3782.3,0.54748146]
[1717365129017,2.4741,3783.4,3782.3,4.99656]
[1717365129543,2.4741,3783.4,3782.7,0.476]
[1717365129942,2.4741,3783.4,3782.3,4.99656]
[1717365130149,8.11696,3783.8,3783.1,0.476]
[1717365130823,8.11696,3783.8,3782.7,2.4108]
[1717365131083,0.811696,3783.7,3783.0,0.476]
[1717365131573,0.811696,3783.7,3783.0,3.11934]
[1717365131797,0.811696,3783.7,3783.0,2.64334]
[1717365132120,0.811696,3783.7,3783.0,3.11934]
[1717365132347,2.64303,3783.6,3782.7,2.4108]
[1717365132654,2.64303,3783.6,3782.9,0.476]
[1717365132655,0.8928826,3783.5,3782.9,0.476]
[1717365134586,0.8928826,3783.5,3782.6,2.64366]
[1717365134867,2.419,3783.4,3782.8,0.476]
[1717365135284,2.419,3783.4,3782.9,0.03146446]
[1717365135560,0.59549126,3783.3,3782.9,0.03146446]
[1717365137817,0.59549126,3783.3,3782.8,0.476]
[1717365139481,0.59549126,3783.3,3782.6,2.64366]
[1717365139681,5.06218,3783.4,3782.8,0.476]
[1717365148755,5.06218,3783.4,3782.8,2.9065]
[1717365149633,5.06218,3783.4,3782.6,2.64366]
[1717365149804,5.06218,3783.4,3782.7,0.476]
[1717365151155,5.06218,3783.4,3782.6,2.64366]
[1717365151325,0.59550626,3783.3,3782.7,0.476]
[1717365152095,0.59550626,3783.3,3782.8,0.476]
[1717365153094,0.59550626,3783.3,3782.6,2.64366]
[1717365153397,0.59550626,3783.3,3782.8,0.476]
[1717365153892,0.59550626,3783.3,3782.6,2.64366]
[1717365154092,0.59550626,3783.3,3782.7,0.476]
[1717365156308,0.59550626,3783.3,3782.8,0.02390973]
[1717365156672,0.59550626,3783.3,3782.7,0.476]
[1717365157504,0.59550626,3783.3,3782.8,0.02390973]
[1717365157692,0.59550626,3783.3,3782.8,0.49990973]
[1717365157890,0.59550626,3783.3,3782.8,0.476]
[1717365158102,0.59550626,3783.3,3782.9,0.02390973]
[1717365160781,5.06218,3783.4,3782.9,0.02390973]
[1717365160981,2.64318,3783.4,3782.9,0.02390973]
[1717365161181,2.64318,3783.4,3782.8,0.476]
[1717365162814,2.4639,3783.3,3782.8,0.476]
[1717365163186,2.64318,3783.4,3782.8,0.476]
[1717365169489,2.64318,3783.4,3782.6,5.05666]
[1717365169686,2.64318,3783.4,3782.8,0.476]
[1717365185298,2.3885,3783.5,3782.8,0.476]
[1717365185573,2.3885,3783.5,3783.0,0.476]
[1717365185770,7.27,3783.8,3783.1,0.02386431]
[1717365186000,7.27,3783.8,3783.2,0.476]
[1717365186570,7.27,3783.8,3783.3,0.02377797]
[1717365188478,3.0,3784.3,3783.7,0.476]
[1717365188479,2.4614,3784.2,3783.7,0.476]
[1717365188669,22.35165,3785.6,3783.4,2.3463]
[1717365188670,2.4614,3784.5,3783.9,3.11874]
[1717365188987,2.4614,3784.5,3784.0,0.33551563]
[1717365189151,2.4614,3784.5,3784.0,0.02364163]
[1717365189536,9.653,3784.7,3784.0,0.02364163]
[1717365189768,9.653,3784.7,3784.1,0.476]
[1717365190207,9.653,3784.7,3784.2,0.02364163]
[1717365190580,9.653,3784.7,3784.3,0.476]
[1717365190790,2.3315,3785.0,3784.3,0.476]
[1717365191068,3.555841,3785.0,3784.5,0.476]
[1717365193505,1.224341,3785.0,3784.5,0.476]
[1717365195514,7.27,3785.2,3784.5,5.45904]
[1717365195710,2.3315,3785.3,3784.5,5.45904]
[1717365196422,2.3315,3785.3,3784.7,0.476]
[1717365196598,12.45,3785.5,3785.0,2.64197]
[1717365196797,2.3425,3785.7,3785.1,0.02364163]
[1717365197107,10.38731,3786.0,3785.0,2.64197]
[1717365197108,4.98381,3786.0,3785.0,2.64197]
[1717365197420,4.98381,3786.0,3785.1,2.3999]
[1717365197629,4.98381,3786.0,3785.2,0.0231783]
[1717365197790,0.545981,3785.9,3785.2,0.0231783]
[1717365198643,0.545981,3785.9,3785.1,2.8759]
[1717365198814,0.545981,3785.9,3785.2,3.11784]
[1717365199410,2.64107,3786.4,3785.4,0.476]
[1717365199736,2.64107,3786.4,3785.6,0.476]
[1717365200043,2.3685,3786.5,3785.8,0.476]
[1717365202834,3.0,3786.7,3785.8,0.476]
[1717365214458,3.0,3786.7,3786.0,0.476]
[1717365215886,2.64081,3786.8,3786.2,0.476]
[1717365218886,2.64081,3786.8,3786.3,2.3592]
[1717365221252,7.27,3787.0,3786.4,0.476]
[1717365221451,7.27,3787.0,3786.5,0.476]
[1717365222287,2.64055,3787.1,3786.5,0.476]
[1717365222496,3.0,3787.0,3786.5,0.476]
[1717365223871,3.0,3787.0,3786.3,2.8352]
[1717365232362,4.97575,3787.4,3786.5,2.7328]
[1717365232661,2.64035,3787.4,3786.5,2.7328]
[1717365232969,2.64035,3787.4,3786.6,2.64088]
[1717365235371,2.64035,3787.4,3786.7,2.2568]
[1717365235819,2.64035,3787.4,3786.7,2.7328]
[1717365237192,2.64035,3787.4,3786.7,3.270168]
[1717365238474,2.64035,3787.4,3786.8,2.64074]
[1717365241381,7.27,3787.5,3786.9,2.7965]
[1717365242002,7.27,3787.5,3787.0,2.64058]
[1717365242383,7.27,3787.5,3787.2,2.64047]
[1717365242587,7.27,3787.5,3787.3,0.543697]
[1717365242807,9.90986,3788.1,3787.3,0.543697]
[1717365243008,9.90986,3788.1,3787.2,2.64047]
[1717365247300,9.90986,3788.1,3787.3,2.3205]
[1717365247821,9.90986,3788.1,3787.3,2.7965]
[1717365255854,9.90986,3788.1,3787.3,2.3205]
[1717365256011,9.90986,3788.1,3787.4,0.476]
[1717365256347,9.90986,3788.1,3787.5,2.2632]
[1717365258542,2.63986,3788.1,3787.5,2.2632]
[1717365276280,12.90962,3788.5,3787.6,0.476]
[1717365276463,0.57068737,3788.4,3787.9,2.4255]
[1717365276780,9.90962,3788.5,3787.9,2.9015]
[1717365280884,2.63962,3788.5,3787.9,2.9015]
[1717365281239,2.63962,3788.5,3787.9,3.455668]
[1717365289166,2.63962,3788.5,3787.9,2.979668]
[1717365289368,2.63962,3788.5,3787.9,3.455668]
[1717365290454,2.63962,3788.5,3787.9,2.979668]
[1717365290657,2.63962,3788.5,3787.9,2.4255]
[1717365291410,7.75166,3788.7,3786.5,0.28533314]
[1717365291586,0.476,3787.8,3786.7,0.476]
[1717365291969,1.04669232,3787.8,3786.7,0.476]
[1717365292375,2.6404,3787.4,3786.7,0.476]
[1717365294325,2.6404,3787.4,3786.7,0.787699]
[1717365300179,2.64055,3787.1,3786.7,0.311699]
[1717365300380,2.64055,3787.1,3786.7,0.787699]
[1717365302824,0.476,3787.1,3786.2,2.4401]
[1717365303123,0.476,3787.1,3784.3,2.64244]
[1717365303124,2.64114,3786.3,3785.3,2.4401]
[1717365303417,2.64114,3786.3,3785.4,0.476]
[1717365303578,2.64131,3786.0,3785.3,5.36724122]
[1717365303777,2.64131,3786.0,3785.5,0.476]
[1717365304940,2.64131,3786.0,3785.3,2.4401]
[1717365305219,2.64152,3785.7,3785.0,3.14411222]
[1717365305512,2.64152,3785.7,3785.0,0.41341222]
[1717365305810,2.64152,3785.7,3785.0,0.88941222]
[1717365306234,2.64152,3785.7,3785.0,0.41341222]
[1717365306581,2.64152,3785.7,3785.0,0.88941222]
[1717365306786,2.64152,3785.7,3785.0,0.41341222]
[1717365307033,2.64152,3785.7,3785.0,0.88941222]
[1717365307407,2.64152,3785.7,3785.0,0.41341222]
[1717365307629,2.64152,3785.7,3785.0,0.88941222]
[1717365309235,2.64152,3785.7,3785.0,0.41341222]
[1717365309731,2.64152,3785.7,3785.0,0.88941222]
[1717365315719,2.64152,3785.7,3785.0,0.41341222]
[1717365320358,2.64173,3785.4,3785.0,0.41341222]
[1717365334253,2.64173,3785.4,3785.1,2.2969]
[1717365335060,2.64153,3785.7,3785.1,2.2969]
[1717365339587,2.64153,3785.7,3785.1,2.7729]
[1717365345808,2.64153,3785.7,3785.1,2.2969]
[1717365348830,2.64153,3785.7,3785.0,0.41341222]
[1717365354497,2.64153,3785.7,3785.1,0.476]
[1717365359213,2.64153,3785.7,3785.0,0.41341222]
[1717365385793,2.3136,3785.6,3785.0,0.41341222]
[1717365390499,2.64153,3785.7,3785.0,0.41341222]
[1717365402313,2.64153,3785.7,3785.1,0.55]
[1717365405312,4.89743,3786.0,3785.2,2.4732]
[1717365405517,2.2561,3786.0,3785.3,2.64175]
[1717365405719,7.27,3786.1,3785.8,2.4491]
[1717365405974,12.26173,3786.7,3785.9,0.72091]
[1717365406175,12.26173,3786.7,3785.9,0.476]
[1717365406918,9.91083,3786.7,3786.1,0.476]
[1717365407426,7.27,3786.7,3786.3,0.476]
[1717365407654,7.27,3786.7,3786.1,0.476]
[1717365407907,7.27,3786.7,3786.1,1.032643]
[1717365408347,7.27,3786.7,3786.1,0.556643]
[1717365408550,7.27,3786.7,3786.2,0.476]
[1717365409695,2.4946,3786.9,3786.2,0.476]
[1717365411987,3.0,3787.0,3786.3,2.2872]
[1717365412358,3.0,3787.0,3786.3,2.6191843]
[1717365422692,3.0,3787.0,3786.4,0.476]
[1717365423796,3.0,3787.0,3786.3,2.7632]
[1717365429690,2.6406,3787.1,3786.3,2.7632]
[1717365434487,2.64095,3786.6,3785.6,2.64157]
[1717365434688,2.3388,3786.5,3785.6,3.11757]
[1717365435297,2.64106,3786.4,3785.6,3.11757]
[1717365435711,2.3388,3786.5,3785.4,2.4855]
[1717365435919,2.64144,3785.9,3785.3,0.41352618]
[1717365441480,2.6416,3785.6,3785.3,0.41352618]
[1717365458122,2.6416,3785.6,3785.1,2.2698]
[1717365468311,2.64181,3785.3,3784.6,2.4529]
[1717365468513,2.64181,3785.3,3784.6,2.9289]
[1717365478256,2.64181,3785.3,3784.6,2.4529]
[1717365488882,2.64198,3785.1,3784.3,2.64248]
[1717365489085,2.64208,3784.9,3784.3,3.11848]
[1717365490284,2.64208,3784.9,3784.3,0.476]
[1717365497020,2.64208,3784.9,3784.0,2.64269]
[1717365497178,2.64208,3784.9,3784.2,0.476]
[1717365508095,2.3833,3785.0,3784.2,2.64255]
[1717365508294,2.64187,3785.2,3784.6,0.476]
[1717365508475,2.64187,3785.2,3784.4,2.4716]
[1717365508680,2.64187,3785.2,3784.5,0.476]
[1717365509217,7.27,3785.3,3784.7,0.476]
[1717365509445,7.27,3785.3,3784.8,0.311827]
[1717365509659,2.64166,3785.5,3784.8,0.311827]
[1717365510641,2.64166,3785.5,3784.7,0.476]
[1717365510855,2.64166,3785.5,3784.6,2.64227]
[1717365511137,2.64166,3785.5,3784.7,0.55]
[1717365522366,2.374,3785.1,3784.2,2.64251]
[1717365522520,0.285,3785.0,3784.2,3.11851]
[1717365522720,2.374,3785.1,3784.2,5.50741]
[1717365522939,2.64206,3785.0,3784.2,5.03141]
[1717365523223,2.64206,3785.0,3784.2,2.3889]
[1717365523224,3.11806,3785.0,3784.2,2.3889]
[1717365523769,2.64206,3785.0,3784.3,0.55]
[1717365551269,2.64206,3785.0,3784.4,2.4699]
[1717365551460,2.64206,3785.0,3784.5,0.55]
[1717365560866,5.0828,3785.3,3784.5,0.55]
[1717365564313,6.36568,3785.3,3784.5,0.55]
[1717365565618,5.0828,3785.3,3784.5,0.55]
[1717365568601,2.6418,3785.3,3784.6,2.4931]
[1717365568826,2.6418,3785.3,3784.7,0.55]
[1717365571329,2.2948,3785.2,3784.7,0.55]
[1717365572530,2.6418,3785.3,3784.7,0.55]
[1717365580053,0.476,3784.9,3783.6,2.64297]
[1717365580264,0.476,3784.9,3783.7,0.476]
[1717365580756,0.476,3784.9,3783.8,0.476]
[1717365581102,3.11835,3784.5,3783.6,2.64297]
[1717365581334,5.51515,3784.5,3783.6,3.11897]
[1717365581823,6.02266268,3784.5,3783.6,3.11897]
[1717365582031,6.02266268,3784.5,3783.7,0.55]
[1717365594612,5.54666268,3784.5,3783.7,0.55]
[1717365600446,2.4765,3784.4,3782.9,2.367]
[1717365600648,2.4765,3784.1,3782.9,2.367]
[1717365600823,5.11914,3784.1,3783.4,0.476]
[1717365601159,2.64264,3784.1,3783.4,2.4567]
[1717365601456,3.11842,3784.4,3783.5,3.11904]
[1717365601666,2.64242,3784.4,3783.5,3.676614]
[1717365601876,2.64242,3784.4,3783.6,0.55]
[1717365602042,2.64242,3784.4,3783.6,1.026]
[1717365602223,2.346,3785.5,3784.1,2.4214]
[1717365602427,2.64147,3785.8,3785.0,0.476]
[1717365602727,15.41460648,3787.6,3785.1,3.19192]
[1717365602728,2.64121,3786.2,3785.1,3.19192]
[1717365602929,2.64121,3786.2,3785.2,0.476]
[1717365603129,2.64121,3786.2,3785.3,0.55]
[1717365603886,2.64121,3786.2,3785.4,2.8154]
[1717365604083,2.64121,3786.2,3785.5,0.55]
[1717365604581,2.64091,3786.6,3785.5,0.88654]
[1717365604775,3.11691,3786.6,3785.5,0.88654]
[1717365605072,3.11691,3786.6,3785.6,0.476]
[1717365605232,3.11691,3786.6,3785.7,0.55]
[1717365605432,2.64091,3786.6,3785.7,0.55]
[1717365605668,3.11691,3786.6,3785.7,0.55]
[1717365605833,0.539041,3786.5,3785.7,0.55]
[1717365606277,2.64058,3787.1,3785.8,3.11742]
[1717365606485,0.476,3786.9,3786.0,0.476]
[1717365606835,0.476,3786.9,3786.1,0.55]
[1717365607049,3.11658,3787.1,3786.1,0.55]
[1717365607291,0.539498,3787.0,3786.1,0.55]
[1717365607497,0.539498,3787.0,3786.1,1.026]
[1717365607803,2.774,3787.9,3786.1,1.026]
[1717365607804,2.64,3787.9,3786.5,2.64092]
[1717365607947,2.64,3787.9,3787.0,0.476]
[1717365608363,2.64,3787.9,3787.2,0.476]
[1717365608659,2.3183,3788.4,3787.4,0.476]
[1717365608660,4.958,3788.4,3787.4,0.476]
[1717365608860,0.23183,3788.3,3787.4,0.476]
[1717365609050,0.23183,3788.3,3787.6,0.476]
[1717365609247,0.23183,3788.3,3787.4,0.476]
[1717365609511,0.23183,3788.3,3787.5,2.64026]
[1717365609666,2.774,3789.4,3787.3,0.55]
[1717365609667,2.3218,3789.4,3788.2,0.476]
[1717365609853,2.3218,3789.4,3788.4,0.476]
[1717365610189,2.63796,3790.8,3788.5,0.476]
[1717365610190,2.63889,3789.5,3788.5,0.476]
[1717365610488,3.11489,3789.5,3788.1,2.63981]
[1717365610695,3.11489,3789.5,3788.4,0.476]
[1717365611057,0.476,3789.4,3788.1,2.63981]
[1717365611248,2.3218,3789.9,3787.6,2.64016]
[1717365611249,0.476,3788.7,3787.6,2.64016]
[1717365611447,0.476,3788.7,3787.7,0.55]
[1717365611647,0.311538,3788.6,3787.7,0.55]
[1717365612150,0.476,3788.5,3787.7,0.55]
[1717365612571,0.311538,3788.6,3787.7,0.55]
[1717365612950,0.476,3788.5,3787.7,0.55]
[1717365613150,0.476,3788.3,3787.1,2.64051]
[1717365613368,0.311565,3788.2,3787.2,0.55]
[1717365613581,0.311565,3788.2,3787.2,1.026]
[1717365615062,0.311565,3788.2,3787.2,0.55]
[1717365615284,0.311565,3788.2,3787.2,1.026]
[1717365615495,2.63992,3788.0,3787.2,0.55]
[1717365615733,0.476,3787.7,3786.6,2.64089]
[1717365615848,0.476,3787.7,3786.6,3.11689]
[1717365617458,0.476,3787.7,3786.7,0.476]
[1717365617657,0.476,3787.7,3786.8,0.55]
[1717365618505,2.64007,3787.8,3787.2,0.476]
[1717365618706,2.64007,3787.8,3787.0,0.476]
[1717365618874,2.64007,3787.8,3787.1,0.55]
[1717365619277,2.904077,3787.8,3787.1,0.55]
[1717365620114,2.904077,3787.8,3786.9,0.55]
[1717365620557,3.380077,3787.8,3786.9,0.55]
[1717365621997,2.904077,3787.8,3786.9,0.55]
[1717365622169,0.3380077,3787.7,3786.9,0.55]
[1717365624489,0.3380077,3787.7,3786.7,1.026]
[1717365625088,0.3380077,3787.7,3784.0,0.54748146]
[1717365625089,2.64022,3787.6,3786.4,0.476]
[1717365625279,2.64022,3787.6,3785.4,2.2619]
[1717365625280,2.4619,3787.2,3785.0,2.64194]
[1717365625598,2.64061,3787.0,3785.0,2.64194]
[1717365625804,0.476,3786.0,3785.0,2.64194]
[1717365626688,3.11737,3786.0,3784.9,2.7379]
[1717365626894,3.11737,3786.0,3785.0,0.55]
[1717365627302,3.11737,3786.0,3785.0,1.026]
[1717365627493,3.11737,3786.0,3785.0,1.35479]
[1717365628008,2.64137,3786.0,3785.0,0.87879]
[1717365632918,2.64157,3785.7,3785.0,0.55]
[1717365633122,2.64157,3785.7,3784.7,3.55]
[1717365633709,2.64177,3785.4,3784.7,0.55]
[1717365633936,2.905947,3785.4,3784.5,0.55]
[1717365634120,2.64177,3785.4,3784.5,0.55]
[1717365642858,2.64177,3785.4,3784.0,5.4896]
[1717365642859,2.64196,3785.1,3784.0,5.4896]
[1717365643055,2.64196,3785.1,3784.0,2.4896]
[1717365643984,2.64196,3785.1,3784.1,2.64262]
[1717365644492,2.64196,3785.1,3784.2,0.55]
[1717365645660,2.64196,3785.1,3784.2,0.5]
[1717365653239,0.478,3784.9,3783.7,2.64285]
[1717365653473,0.478,3784.7,3783.7,2.64285]
[1717365653643,0.2356,3784.9,3783.7,2.64285]
[1717365653798,0.478,3784.7,3783.7,2.64285]
[1717365654397,2.64229,3784.6,3783.8,0.55]
[1717365658643,0.2356,3784.9,3784.2,2.64255]
[1717365658915,2.64173,3785.4,3784.4,2.64238]
[1717365659216,0.478,3785.3,3784.5,0.55]
[1717365659530,2.64173,3785.4,3784.5,1.028]
[1717365659753,2.64173,3785.4,3784.5,0.55]
[1717365659754,3.11973,3785.4,3784.5,0.55]
[1717365659959,0.559373,3785.3,3784.5,0.55]
[1717365660345,0.559373,3785.3,3784.6,2.64225]
[1717365660747,0.559373,3785.3,3784.7,0.55]
[1717365661280,2.64076,3786.8,3784.7,0.55]
[1717365661281,2.3545,3786.7,3785.6,2.64157]
[1717365661447,2.3545,3786.7,3786.0,0.478]
[1717365661655,2.3545,3786.7,3785.9,2.64132]
[1717365661973,0.478,3786.9,3786.0,0.55]
[1717365662177,0.311866,3786.8,3786.0,0.55]
[1717365662637,0.311866,3786.8,3786.1,2.64123]
[1717365662846,0.311866,3786.8,3786.2,0.55]
[1717365664329,0.311866,3786.8,3786.3,2.64109]
[1717365664527,2.3545,3787.2,3786.3,2.64109]
[1717365665975,2.3545,3787.2,3786.5,2.64095]
[1717365667377,3.0,3787.3,3786.5,2.64095]
[1717365667378,3.0,3787.3,3786.6,0.55]
[1717365667544,3.0,3787.3,3786.7,2.64081]
[1717365667744,2.5963077,3787.7,3786.8,0.55]
[1717365667955,2.5963077,3787.7,3786.6,0.55]
[1717365667956,0.52363777,3787.6,3786.6,0.55]
[1717365669574,0.52363777,3787.6,3786.9,2.64067]
[1717365672370,0.52363777,3787.6,3786.0,3.0]
[1717365672371,0.3380077,3787.7,3787.4,2.64027]
[1717365672575,2.4729,3788.2,3787.4,2.64027]
[1717365673275,2.4587,3788.6,3787.4,2.64027]
[1717365673971,5.4587,3788.6,3787.4,2.64027]
[1717365676192,5.4587,3788.6,3787.7,2.64008]
[1717365676369,0.809815,3788.5,3787.9,2.63994]
[1717365676554,3.0,3789.0,3787.9,2.63994]
[1717365677291,3.0,3789.0,3788.1,2.63979]
[1717365677501,2.269,3789.1,3788.1,2.63979]
[1717365677794,2.269,3789.1,3788.3,2.63965]
[1717365677991,0.2269,3789.0,3788.3,2.63965]
[1717365679501,3.0,3789.4,3788.3,2.63965]
[1717365685020,2.63863,3789.9,3788.4,0.05279033]
[1717365685315,2.63835,3790.3,3788.5,0.55]
[1717365685501,0.502385,3790.2,3788.6,3.4835]
[1717365685672,0.502385,3790.2,3788.7,0.55]
[1717365686377,0.502385,3790.2,3789.2,2.63904]
[1717365687016,0.502385,3790.2,3789.5,5.02192]
[1717365687193,2.63808,3790.7,3789.7,2.63868]
[1717365687389,2.63808,3790.7,3789.8,0.55]
[1717365687590,2.63808,3790.7,3789.7,2.63868]
[1717365688581,2.63808,3790.7,3788.1,3.09417343]
[1717365688582,2.63875,3789.7,3788.1,0.45434343]
[1717365688908,2.63875,3789.7,3786.5,0.54748146]
[1717365688909,2.63891,3789.5,3788.5,2.63951]
[1717365690889,2.63891,3789.5,3788.6,0.55]
[1717365694524,0.263875,3789.6,3788.8,2.63934]
[1717365694824,2.63864,3789.9,3788.9,0.55]
[1717365694825,3.0,3789.8,3788.9,0.55]
[1717365698919,2.63874,3789.7,3788.9,0.55]
[1717365699316,3.0,3789.8,3789.0,2.6392]
[1717365699516,3.0,3790.0,3789.0,2.6392]
[1717365699844,0.563851,3789.9,3789.0,2.6392]
[1717365700417,2.63823,3790.5,3789.2,2.63901]
[1717365700620,2.63823,3790.5,3789.5,2.63886]
[1717365700853,2.63823,3790.5,3789.6,0.55]
[1717365701547,2.63823,3790.5,3789.7,2.63869]
[1717365701756,0.263823,3790.4,3789.8,0.55]
[1717365702211,2.63794,3790.9,3789.8,2.8842]
[1717365704517,2.63812,3790.6,3789.8,0.55]
[1717365706971,2.63812,3790.6,3789.7,2.63869]
[1717365709857,2.63788,3791.0,3790.0,2.6385]
[1717365710032,0.791398,3790.9,3790.0,5.0557]
[1717365711462,0.791398,3790.9,3790.2,2.63835]
[1717365711959,0.791398,3790.9,3790.3,0.55]
[1717365715362,0.791398,3790.9,3790.4,2.63823]
[1717365715568,3.0,3791.3,3790.4,2.63823]
[1717365715924,2.63769,3791.2,3790.4,2.63823]
[1717365717143,5.12447,3791.6,3790.6,2.63807]
[1717365717341,3.0,3791.5,3790.6,2.63807]
[1717365717540,1.112447,3791.4,3790.6,2.63807]
[1717365717741,5.12447,3791.6,3790.6,2.63807]
[1717365724359,2.63822,3790.5,3789.1,2.2993]
[1717365724560,2.63822,3790.5,3789.1,3.4453]
[1717365725477,2.63822,3790.5,3789.4,2.63888]
[1717365725673,3.127242,3790.5,3789.4,2.63888]
[1717365725877,3.127242,3790.5,3789.5,0.55]
[1717365727275,2.63839,3790.2,3789.5,0.55]
[1717365732791,2.63861,3789.9,3789.1,2.2993]
[1717365734082,2.63861,3789.9,3789.2,0.55]
[1717365735167,2.63837,3790.3,3789.3,2.639]
[1717365735371,2.63837,3790.3,3789.2,0.55]
[1717365735372,2.63837,3790.3,3789.5,2.63886]
[1717365735659,2.63837,3790.3,3789.6,0.55]
[1717365741577,2.975522,3790.5,3789.1,2.2993]
[1717365741781,2.63899,3789.4,3788.6,2.311]
[1717365742438,2.63926,3789.0,3788.1,2.346]
[1717365742581,2.63926,3789.0,3788.0,2.6399]
[1717365742777,5.03116,3789.0,3788.0,2.6399]
[1717365742982,2.63942,3788.8,3787.7,2.346]
[1717365743805,2.6396,3788.5,3787.6,2.64014]
[1717365744680,2.6396,3788.5,3787.3,2.7529323]
[1717365744681,2.63975,3788.3,3787.3,0.4130323]
[1717365744931,0.502325,3788.2,3787.3,0.4130323]
[1717365745695,2.63975,3788.3,3787.3,0.4130323]
[1717365746489,2.63975,3788.3,3787.4,0.55]
[1717365747431,2.63975,3788.3,3787.3,0.4130323]